Workbook

Sheet Panduan
B4: ALIRAN TUNAI PERIBADI
B5: Buku kerja ini mempunyai lembaran kerja aliran tunai tahunan, bulanan dan harian . Pilih jenis aliran tunai yang paling sesuai untuk anda atau menggunakan kesemuanya untuk membantu mengetahui aliran tunai peribadi anda.
B9: Aliran Tunai Tahunan | D9: Aliran Tunai Bulanan | F9: Aliran Tunai Harian
B11: Masukkan amaun aliran tunai tahunan bagi pelbagai aspek. Lihat jumlah bulanan dan perbandingannya, dan penting sekali dasar anda berada dalam nilai tahunan dan bulanan. | D11: Masukkan aliran tunai bulanan yang anda alami setiap bulan atau anggarkan baki bulan untuk melihat aliran tunai yang diunjurkan bagi tahun setiap bulan. | F11: Masukkan amaun anggaran aliran tunai yang anda alami setiap hari dan semak semula jumlah bulanan dan tahunan anggaran. Gunakan ini untuk memahami cara perbelanjaan harian anda dalam bulan atau tahun.

Sheet Aliran Tunai Tahunan
B1: ALIRAN TUNAI PERIBADI
B2: =AnnualCashFlowToDate -> RM39,750.00 | H2: Ini adalah anggaran tahunan. Gunakan lembaran kerja ini jika anda ingin melihat amaun tahunan dengan nilai bulanan anggaran Jika anda ingin menambahkan item harian pada jadual, anggarkan amaun/nilai tahunannya dan letakkan nilai dalam lajur Tahunan.
B5: RINGKASAN PENDAPATAN | F5: RINGKASAN PERBELANJAAN | J5: RINGKASAN BUDI BICARA | N5: RINGKASAN SIMPANAN
B6: Jumlah Tahunan: | C6: =tblIncome[[#Totals],[Tahunan ]] -> RM125,000.00 | F6: Jumlah Tahunan: | G6: =tblExpenses[[#Totals],[Tahunan ]] -> RM49,000.00 | J6: Jumlah Tahunan: | K6: =tblDiscretionary[[#Totals],[Tahunan ]] -> RM13,250.00 | N6: Jumlah Tahunan: | O6: =tblSavings[[#Totals],[Tahunan ]] -> RM23,000.00
B26: Jumlah Bulanan: | C26: =tblIncome[[#Totals],[Bulanan ]] -> RM10,416.67 | F26: Jumlah Bulanan: | G26: =tblExpenses[[#Totals],[Bulanan ]] -> RM4,083.33 | J26: Jumlah Bulanan: | K26: =tblDiscretionary[[#Totals],[Bulanan ]] -> RM1,104.17 | N26: Jumlah Bulanan: | O26: =tblSavings[[#Totals],[Bulanan ]] -> RM1,916.67
B29: Pendapatan | C29: Tahunan | D29: Bulanan | F29: Perbelanjaan | G29: Tahunan | H29: Bulanan | J29: Perbelanjaan Budi Bicara | K29: Tahunan | L29: Bulanan | N29: Simpanan | O29: Tahunan | P29: Bulanan
B30: Gaji | C30: RM90,000.00 | D30: =tblIncome[[#This Row],[Tahunan ]]/12 -> RM7,500.00 | F30: Persekutuan/SS/Jagaan Perubatan | G30: RM15,000.00 | H30: =tblExpenses[[#This Row],[Tahunan ]]/12 -> RM1,250.00 | J30: Makan Malam | K30: RM1,200.00 | L30: =tblDiscretionary[[#This Row],[Tahunan ]]/12 -> RM100.00 | N30: Simpanan Tunai | O30: RM5,000.00 | P30: =tblSavings[[#This Row],[Tahunan ]]/12 -> RM416.67
B31: Komisen/Bonus | C31: RM5,000.00 | D31: =tblIncome[[#This Row],[Tahunan ]]/12 -> RM416.67 | F31: Cukai Pendapatan Negeri | G31: RM2,500.00 | H31: =tblExpenses[[#This Row],[Tahunan ]]/12 -> RM208.33 | J31: Hadiah | K31: RM600.00 | L31: =tblDiscretionary[[#This Row],[Tahunan ]]/12 -> RM50.00 | N31: 401(k)/Dll | O31: RM12,000.00 | P31: =tblSavings[[#This Row],[Tahunan ]]/12 -> RM1,000.00
B32: Lain 1 | C32: RM30,000.00 | D32: =tblIncome[[#This Row],[Tahunan ]]/12 -> RM2,500.00 | F32: Cukai/Yuran Kenderaan | G32: RM200.00 | H32: =tblExpenses[[#This Row],[Tahunan ]]/12 -> RM16.67 | J32: Pelancongan | K32: RM2,250.00 | L32: =tblDiscretionary[[#This Row],[Tahunan ]]/12 -> RM187.50 | N32: Simpanan/Pelaburan | O32: RM6,000.00 | P32: =tblSavings[[#This Row],[Tahunan ]]/12 -> RM500.00
B33: Lain 2 | D33: =tblIncome[[#This Row],[Tahunan ]]/12 -> RM0.00 | F33: Bayaran Kenderaan | G33: RM4,000.00 | H33: =tblExpenses[[#This Row],[Tahunan ]]/12 -> RM333.33 | J33: Hiburan | K33: RM1,200.00 | L33: =tblDiscretionary[[#This Row],[Tahunan ]]/12 -> RM100.00 | N33: Lain 1 | P33: =tblSavings[[#This Row],[Tahunan ]]/12 -> RM0.00
B34: Lain 3 | D34: =tblIncome[[#This Row],[Tahunan ]]/12 -> RM0.00 | F34: Gadai Janji/Sewa | G34: RM15,000.00 | H34: =tblExpenses[[#This Row],[Tahunan ]]/12 -> RM1,250.00 | J34: Penjagaan Peribadi | K34: RM300.00 | L34: =tblDiscretionary[[#This Row],[Tahunan ]]/12 -> RM25.00 | N34: Lain 2 | P34: =tblSavings[[#This Row],[Tahunan ]]/12 -> RM0.00
B35: Lain 4 | D35: =tblIncome[[#This Row],[Tahunan ]]/12 -> RM0.00 | F35: Insurans | G35: RM250.00 | H35: =tblExpenses[[#This Row],[Tahunan ]]/12 -> RM20.83 | J35: Membeli-belah | K35: RM2,000.00 | L35: =tblDiscretionary[[#This Row],[Tahunan ]]/12 -> RM166.67 | N35: Jumlah | O35: =SUBTOTAL(109,tblSavings[[Tahunan ]]) -> RM23,000.00 | P35: =SUBTOTAL(109,tblSavings[[Bulanan ]]) -> RM1,916.67
B36: Jumlah | C36: =SUBTOTAL(109,tblIncome[[Tahunan ]]) -> RM125,000.00 | D36: =SUBTOTAL(109,tblIncome[[Bulanan ]]) -> RM10,416.67 | F36: Elektrik | G36: RM1,200.00 | H36: =tblExpenses[[#This Row],[Tahunan ]]/12 -> RM100.00 | J36: Amal | K36: RM600.00 | L36: =tblDiscretionary[[#This Row],[Tahunan ]]/12 -> RM50.00
F37: Gas | G37: RM600.00 | H37: =tblExpenses[[#This Row],[Tahunan ]]/12 -> RM50.00 | J37: Kelab/Keahlian | K37: RM300.00 | L37: =tblDiscretionary[[#This Row],[Tahunan ]]/12 -> RM25.00
F38: Air/Pembentung | G38: RM600.00 | H38: =tblExpenses[[#This Row],[Tahunan ]]/12 -> RM50.00 | J38: Pembaikan Rumah | K38: RM4,800.00 | L38: =tblDiscretionary[[#This Row],[Tahunan ]]/12 -> RM400.00
F39: Sampah | G39: RM150.00 | H39: =tblExpenses[[#This Row],[Tahunan ]]/12 -> RM12.50 | J39: Lain 1 | L39: =tblDiscretionary[[#This Row],[Tahunan ]]/12 -> RM0.00
F40: Telefon | G40: RM600.00 | H40: =tblExpenses[[#This Row],[Tahunan ]]/12 -> RM50.00 | J40: Lain 2 | L40: =tblDiscretionary[[#This Row],[Tahunan ]]/12 -> RM0.00
F41: Internet | G41: RM600.00 | H41: =tblExpenses[[#This Row],[Tahunan ]]/12 -> RM50.00 | J41: Jumlah | K41: =SUBTOTAL(109,tblDiscretionary[[Tahunan ]]) -> RM13,250.00 | L41: =SUBTOTAL(109,tblDiscretionary[[Bulanan ]]) -> RM1,104.17
F42: Premium nyawa/Kecacatan | G42: RM1,500.00 | H42: =tblExpenses[[#This Row],[Tahunan ]]/12 -> RM125.00
F43: Makanan | G43: RM5,000.00 | H43: =tblExpenses[[#This Row],[Tahunan ]]/12 -> RM416.67
F44: Pakaian | G44: RM1,200.00 | H44: =tblExpenses[[#This Row],[Tahunan ]]/12 -> RM100.00
F45: Perubatan/Pergigian/Rx | G45: RM600.00 | H45: =tblExpenses[[#This Row],[Tahunan ]]/12 -> RM50.00
F46: Lain 1 | H46: =tblExpenses[[#This Row],[Tahunan ]]/12 -> RM0.00
F47: Lain 2 | H47: =tblExpenses[[#This Row],[Tahunan ]]/12 -> RM0.00
F48: Jumlah | G48: =SUBTOTAL(109,tblExpenses[[Tahunan ]]) -> RM49,000.00 | H48: =SUBTOTAL(109,tblExpenses[[Bulanan ]]) -> RM4,083.33

Sheet Aliran Tunai Bulanan
B1: ALIRAN TUNAI PERIBADI
B2: =MonthlyCashFlowToDate -> RM18,380.00 | H2: NOTA: Bagi item harian, anggarkan amaun/nilai bulanan dan letakkan nilai tersebut dalam lajur bulan berkaitan.
B5: Jenis | C5: Perihalan | D5: Jan | E5: Feb | F5: Mac | G5: Apr | H5: Mei | I5: Jun | J5: Jul | K5: Ogo | L5: Sep | M5: Okt | N5: Nov | O5: Dis | P5: Jumlah
B6: Pendapatan | C6: Gaji | D6: RM7,500.00 | E6: RM7,500.00 | F6: RM7,500.00 | G6: RM7,500.00 | H6: RM7,500.00 | I6: RM7,500.00 | P6: =SUM(tblMontly[[#This Row],[Jan]:[Dis]]) -> RM45,000.00
B7: Pendapatan | C7: Komisen/Bonus | D7: RM400.00 | E7: RM400.00 | F7: RM500.00 | G7: RM200.00 | H7: RM0.00 | I7: RM600.00 | P7: =SUM(tblMontly[[#This Row],[Jan]:[Dis]]) -> RM2,100.00
B8: Pendapatan | C8: Lain 1 | D8: RM2,500.00 | E8: RM2,500.00 | F8: RM2,500.00 | G8: RM2,500.00 | H8: RM2,500.00 | I8: RM2,500.00 | P8: =SUM(tblMontly[[#This Row],[Jan]:[Dis]]) -> RM15,000.00
B9: Pendapatan | C9: Lain 2 | D9: RM0.00 | E9: RM0.00 | F9: RM0.00 | G9: RM0.00 | H9: RM0.00 | I9: RM0.00 | P9: =SUM(tblMontly[[#This Row],[Jan]:[Dis]]) -> RM0.00
B10: Pendapatan | C10: Lain 3 | D10: RM0.00 | E10: RM0.00 | F10: RM0.00 | G10: RM0.00 | H10: RM0.00 | I10: RM0.00 | P10: =SUM(tblMontly[[#This Row],[Jan]:[Dis]]) -> RM0.00
B11: Pendapatan | C11: Lain 4 | D11: RM0.00 | E11: RM0.00 | F11: RM0.00 | G11: RM0.00 | H11: RM0.00 | I11: RM0.00 | P11: =SUM(tblMontly[[#This Row],[Jan]:[Dis]]) -> RM0.00
B12: Perbelanjaan | C12: Persekutuan/SS/Jagaan Perubatan | D12: RM1,250.00 | E12: RM1,250.00 | F12: RM1,250.00 | G12: RM1,250.00 | H12: RM1,250.00 | I12: RM1,250.00 | P12: =SUM(tblMontly[[#This Row],[Jan]:[Dis]]) -> RM7,500.00
B13: Perbelanjaan | C13: Cukai Pendapatan Negeri | D13: RM208.33 | E13: RM208.33 | F13: RM208.33 | G13: RM208.33 | H13: RM208.33 | I13: RM208.33 | P13: =SUM(tblMontly[[#This Row],[Jan]:[Dis]]) -> RM1,250.00
B14: Perbelanjaan | C14: Cukai/Yuran Kenderaan | D14: RM16.67 | E14: RM16.67 | F14: RM16.67 | G14: RM16.67 | H14: RM16.67 | I14: RM16.67 | P14: =SUM(tblMontly[[#This Row],[Jan]:[Dis]]) -> RM100.00
B15: Perbelanjaan | C15: Bayaran Kenderaan | D15: RM333.33 | E15: RM333.33 | F15: RM333.33 | G15: RM333.33 | H15: RM333.33 | I15: RM333.33 | P15: =SUM(tblMontly[[#This Row],[Jan]:[Dis]]) -> RM2,000.00
B16: Perbelanjaan | C16: Gadai Janji/Sewa | D16: RM1,250.00 | E16: RM1,250.00 | F16: RM1,250.00 | G16: RM1,250.00 | H16: RM1,250.00 | I16: RM1,250.00 | P16: =SUM(tblMontly[[#This Row],[Jan]:[Dis]]) -> RM7,500.00
B17: Perbelanjaan | C17: Insurans | D17: RM25.00 | E17: RM25.00 | F17: RM25.00 | G17: RM25.00 | H17: RM25.00 | I17: RM25.00 | P17: =SUM(tblMontly[[#This Row],[Jan]:[Dis]]) -> RM150.00
B18: Perbelanjaan | C18: Elektrik | D18: RM100.00 | E18: RM100.00 | F18: RM100.00 | G18: RM100.00 | H18: RM100.00 | I18: RM100.00 | P18: =SUM(tblMontly[[#This Row],[Jan]:[Dis]]) -> RM600.00
B19: Perbelanjaan | C19: Gas | D19: RM50.00 | E19: RM50.00 | F19: RM50.00 | G19: RM50.00 | H19: RM50.00 | I19: RM50.00 | P19: =SUM(tblMontly[[#This Row],[Jan]:[Dis]]) -> RM300.00
B20: Perbelanjaan | C20: Air | D20: RM50.00 | E20: RM50.00 | F20: RM50.00 | G20: RM50.00 | H20: RM50.00 | I20: RM50.00 | P20: =SUM(tblMontly[[#This Row],[Jan]:[Dis]]) -> RM300.00
B21: Perbelanjaan | C21: Pembetung | D21: RM25.00 | E21: RM25.00 | F21: RM25.00 | G21: RM25.00 | H21: RM25.00 | I21: RM25.00 | P21: =SUM(tblMontly[[#This Row],[Jan]:[Dis]]) -> RM150.00
B22: Perbelanjaan | C22: Sampah | D22: RM12.50 | E22: RM12.50 | F22: RM12.50 | G22: RM12.50 | H22: RM12.50 | I22: RM12.50 | P22: =SUM(tblMontly[[#This Row],[Jan]:[Dis]]) -> RM75.00
B23: Perbelanjaan | C23: Telefon | D23: RM50.00 | E23: RM50.00 | F23: RM50.00 | G23: RM50.00 | H23: RM50.00 | I23: RM50.00 | P23: =SUM(tblMontly[[#This Row],[Jan]:[Dis]]) -> RM300.00
B24: Perbelanjaan | C24: Internet | D24: RM50.00 | E24: RM50.00 | F24: RM50.00 | G24: RM50.00 | H24: RM50.00 | I24: RM50.00 | P24: =SUM(tblMontly[[#This Row],[Jan]:[Dis]]) -> RM300.00
B25: Perbelanjaan | C25: Premium nyawa/Kecacatan | D25: RM125.00 | E25: RM125.00 | F25: RM125.00 | G25: RM125.00 | H25: RM125.00 | I25: RM125.00 | P25: =SUM(tblMontly[[#This Row],[Jan]:[Dis]]) -> RM750.00
B26: Perbelanjaan | C26: Makanan | D26: RM400.00 | E26: RM500.00 | F26: RM450.00 | G26: RM400.00 | H26: RM450.00 | I26: RM425.00 | P26: =SUM(tblMontly[[#This Row],[Jan]:[Dis]]) -> RM2,625.00
B27: Perbelanjaan | C27: Pakaian | D27: RM50.00 | E27: RM75.00 | F27: RM100.00 | G27: RM75.00 | H27: RM125.00 | I27: RM75.00 | P27: =SUM(tblMontly[[#This Row],[Jan]:[Dis]]) -> RM500.00
B28: Perbelanjaan | C28: Perubatan/Pergigian/Rx | D28: RM50.00 | E28: RM10.00 | F28: RM25.00 | G28: RM25.00 | H28: RM20.00 | I28: RM70.00 | P28: =SUM(tblMontly[[#This Row],[Jan]:[Dis]]) -> RM200.00
B29: Perbelanjaan | C29: Bas | D29: RM30.00 | E29: RM30.00 | F29: RM30.00 | G29: RM20.00 | H29: RM30.00 | I29: RM30.00 | P29: =SUM(tblMontly[[#This Row],[Jan]:[Dis]]) -> RM170.00
B30: Perbelanjaan | C30: Lain 2 | D30: RM0.00 | E30: RM0.00 | F30: RM0.00 | G30: RM0.00 | H30: RM0.00 | I30: RM0.00 | P30: =SUM(tblMontly[[#This Row],[Jan]:[Dis]]) -> RM0.00
B31: Perbelanjaan | C31: Lain 3 | D31: RM0.00 | E31: RM0.00 | F31: RM0.00 | G31: RM0.00 | H31: RM0.00 | I31: RM0.00 | P31: =SUM(tblMontly[[#This Row],[Jan]:[Dis]]) -> RM0.00
B32: Perbelanjaan | C32: Lain 4 | D32: RM0.00 | E32: RM0.00 | F32: RM0.00 | G32: RM0.00 | H32: RM0.00 | I32: RM0.00 | P32: =SUM(tblMontly[[#This Row],[Jan]:[Dis]]) -> RM0.00
B33: Budi Bicara | C33: Makan Malam | D33: RM50.00 | E33: RM150.00 | F33: RM100.00 | G33: RM50.00 | H33: RM150.00 | I33: RM100.00 | P33: =SUM(tblMontly[[#This Row],[Jan]:[Dis]]) -> RM600.00
B34: Budi Bicara | C34: Hadiah | D34: RM25.00 | E34: RM75.00 | F34: RM50.00 | G34: RM25.00 | H34: RM75.00 | I34: RM50.00 | P34: =SUM(tblMontly[[#This Row],[Jan]:[Dis]]) -> RM300.00
B35: Budi Bicara | C35: Pelancongan | D35: RM0.00 | E35: RM0.00 | F35: RM1,000.00 | G35: RM0.00 | H35: RM0.00 | I35: RM1,000.00 | P35: =SUM(tblMontly[[#This Row],[Jan]:[Dis]]) -> RM2,000.00
B36: Budi Bicara | C36: Hiburan | D36: RM50.00 | E36: RM150.00 | F36: RM100.00 | G36: RM50.00 | H36: RM150.00 | I36: RM100.00 | P36: =SUM(tblMontly[[#This Row],[Jan]:[Dis]]) -> RM600.00
B37: Budi Bicara | C37: Penjagaan Peribadi | D37: RM15.00 | E37: RM25.00 | F37: RM35.00 | G37: RM15.00 | H37: RM25.00 | I37: RM35.00 | P37: =SUM(tblMontly[[#This Row],[Jan]:[Dis]]) -> RM150.00
B38: Budi Bicara | C38: Membeli-belah | D38: RM100.00 | E38: RM200.00 | F38: RM150.00 | G38: RM175.00 | H38: RM150.00 | I38: RM175.00 | P38: =SUM(tblMontly[[#This Row],[Jan]:[Dis]]) -> RM950.00
B39: Budi Bicara | C39: Amal | D39: RM50.00 | E39: RM50.00 | F39: RM50.00 | G39: RM50.00 | H39: RM50.00 | I39: RM50.00 | P39: =SUM(tblMontly[[#This Row],[Jan]:[Dis]]) -> RM300.00
B40: Budi Bicara | C40: Kelab/Keahlian | D40: RM25.00 | E40: RM25.00 | F40: RM25.00 | G40: RM25.00 | H40: RM25.00 | I40: RM25.00 | P40: =SUM(tblMontly[[#This Row],[Jan]:[Dis]]) -> RM150.00
B41: Budi Bicara | C41: Pembaikan Rumah | D41: RM400.00 | E41: RM400.00 | F41: RM400.00 | G41: RM400.00 | H41: RM400.00 | I41: RM400.00 | P41: =SUM(tblMontly[[#This Row],[Jan]:[Dis]]) -> RM2,400.00
B42: Budi Bicara | C42: Lain 1 | D42: RM0.00 | E42: RM0.00 | F42: RM0.00 | G42: RM0.00 | H42: RM0.00 | I42: RM0.00 | P42: =SUM(tblMontly[[#This Row],[Jan]:[Dis]]) -> RM0.00
B43: Budi Bicara | C43: Lain 2 | D43: RM0.00 | E43: RM0.00 | F43: RM0.00 | G43: RM0.00 | H43: RM0.00 | I43: RM0.00 | P43: =SUM(tblMontly[[#This Row],[Jan]:[Dis]]) -> RM0.00
B44: Simpanan | C44: Simpanan Tunai | D44: RM416.67 | E44: RM416.67 | F44: RM416.67 | G44: RM416.67 | H44: RM416.67 | I44: RM416.67 | P44: =SUM(tblMontly[[#This Row],[Jan]:[Dis]]) -> RM2,500.00
B45: Simpanan | C45: 401(k)/Dll | D45: RM1,000.00 | E45: RM1,000.00 | F45: RM1,000.00 | G45: RM1,000.00 | H45: RM1,000.00 | I45: RM1,000.00 | P45: =SUM(tblMontly[[#This Row],[Jan]:[Dis]]) -> RM6,000.00
B46: Simpanan | C46: Simpanan/Pelaburan/Akaun | D46: RM500.00 | E46: RM500.00 | F46: RM500.00 | G46: RM500.00 | H46: RM500.00 | I46: RM500.00 | P46: =SUM(tblMontly[[#This Row],[Jan]:[Dis]]) -> RM3,000.00
B47: Simpanan | C47: Lain 1 | D47: RM0.00 | E47: RM0.00 | F47: RM0.00 | G47: RM0.00 | H47: RM0.00 | I47: RM0.00 | P47: =SUM(tblMontly[[#This Row],[Jan]:[Dis]]) -> RM0.00
B48: Simpanan | C48: Lain 2 | D48: RM0.00 | E48: RM0.00 | F48: RM0.00 | G48: RM0.00 | H48: RM0.00 | I48: RM0.00 | P48: =SUM(tblMontly[[#This Row],[Jan]:[Dis]]) -> RM0.00
B49: Jumlah | D49: =SUMIF(tblMontly[Jenis],"Pendapatan",tblMontly[Jan])-SUMIF(tblMontly[Jenis],"<>Pendapatan",tblMontly[Jan]) -> RM3,692.50 | E49: =SUMIF(tblMontly[Jenis],"Pendapatan",tblMontly[Feb])-SUMIF(tblMontly[Jenis],"<>Pendapatan",tblMontly[Feb]) -> RM3,247.50 | F49: =SUMIF(tblMontly[Jenis],"Pendapatan",tblMontly[Mac])-SUMIF(tblMontly[Jenis],"<>Pendapatan",tblMontly[Mac]) -> RM2,522.50 | G49: =SUMIF(tblMontly[Jenis],"Pendapatan",tblMontly[Apr])-SUMIF(tblMontly[Jenis],"<>Pendapatan",tblMontly[Apr]) -> RM3,427.50 | H49: =SUMIF(tblMontly[Jenis],"Pendapatan",tblMontly[Mei])-SUMIF(tblMontly[Jenis],"<>Pendapatan",tblMontly[Mei]) -> RM2,887.50 | I49: =SUMIF(tblMontly[Jenis],"Pendapatan",tblMontly[Jun])-SUMIF(tblMontly[Jenis],"<>Pendapatan",tblMontly[Jun]) -> RM2,602.50 | J49: =SUMIF(tblMontly[Jenis],"Income",tblMontly[Jul])-SUMIF(tblMontly[Jenis],"<>Income",tblMontly[Jul]) -> RM0.00 | K49: =SUMIF(tblMontly[Jenis],"Income",tblMontly[Ogo])-SUMIF(tblMontly[Jenis],"<>Income",tblMontly[Ogo]) -> RM0.00 | L49: =SUMIF(tblMontly[Jenis],"Income",tblMontly[Sep])-SUMIF(tblMontly[Jenis],"<>Income",tblMontly[Sep]) -> RM0.00 | M49: =SUMIF(tblMontly[Jenis],"Income",tblMontly[Okt])-SUMIF(tblMontly[Jenis],"<>Income",tblMontly[Okt]) -> RM0.00 | N49: =SUMIF(tblMontly[Jenis],"Income",tblMontly[Nov])-SUMIF(tblMontly[Jenis],"<>Income",tblMontly[Nov]) -> RM0.00 | O49: =SUMIF(tblMontly[Jenis],"Income",tblMontly[Dis])-SUMIF(tblMontly[Jenis],"<>Income",tblMontly[Dis]) -> RM0.00 | P49: =SUMIF(tblMontly[Jenis],"Pendapatan",tblMontly[Jumlah])-SUMIF(tblMontly[Jenis],"<>Pendapatan",tblMontly[Jumlah]) -> RM18,380.00

Sheet Aliran Tunai Harian
B1: ALIRAN TUNAI PERIBADI
B2: =DailyCashFlow -> RM577.84 | H2: NOTE: If you wish to add daily items to the Table, estimate their monthly amount/value and place value in the appropriate month column.
B4: RINGKASA HARIAN
B5: JUMLAH | D5: Harian | E5: Bulanan | F5: Tahunan
B6: Pendapatan | D6: =SUMIF(tblDaily[Jenis],tblDailyTotals[[#This Row],[JUMLAH]],tblDaily[Harian]) -> RM342.47 | E6: =SUMIF(tblDaily[Jenis],tblDailyTotals[[#This Row],[JUMLAH]],tblDaily[Bulanan]) -> RM10,416.80 | F6: =SUMIF(tblDaily[Jenis],tblDailyTotals[[#This Row],[JUMLAH]],tblDaily[Tahunan]) -> RM125,001.55
B7: Perbelanjaan | D7: =SUMIF(tblDaily[Jenis],tblDailyTotals[[#This Row],[JUMLAH]],tblDaily[Harian]) -> RM136.06 | E7: =SUMIF(tblDaily[Jenis],tblDailyTotals[[#This Row],[JUMLAH]],tblDaily[Bulanan]) -> RM4,138.49 | F7: =SUMIF(tblDaily[Jenis],tblDailyTotals[[#This Row],[JUMLAH]],tblDaily[Tahunan]) -> RM49,661.90
B8: Budi Bicara | D8: =SUMIF(tblDaily[Jenis],tblDailyTotals[[#This Row],[JUMLAH]],tblDaily[Harian]) -> RM36.29 | E8: =SUMIF(tblDaily[Jenis],tblDailyTotals[[#This Row],[JUMLAH]],tblDaily[Bulanan]) -> RM1,103.82 | F8: =SUMIF(tblDaily[Jenis],tblDailyTotals[[#This Row],[JUMLAH]],tblDaily[Tahunan]) -> RM13,245.85
B9: Simpanan | D9: =SUMIF(tblDaily[Jenis],tblDailyTotals[[#This Row],[JUMLAH]],tblDaily[Harian]) -> RM63.02 | E9: =SUMIF(tblDaily[Jenis],tblDailyTotals[[#This Row],[JUMLAH]],tblDaily[Bulanan]) -> RM1,916.86 | F9: =SUMIF(tblDaily[Jenis],tblDailyTotals[[#This Row],[JUMLAH]],tblDaily[Tahunan]) -> RM23,002.30
B12: Jenis | C12: Perihalan | D12: Harian | E12: Bulanan | F12: Tahunan
B13: Pendapatan | C13: Gaji | D13: RM246.58 | E13: =tblDaily[[#This Row],[Tahunan]]/12 -> RM7,500.14 | F13: =tblDaily[[#This Row],[Harian]]*365 -> RM90,001.70
B14: Pendapatan | C14: Komisen/Bonus | D14: RM13.70 | E14: =tblDaily[[#This Row],[Tahunan]]/12 -> RM416.71 | F14: =tblDaily[[#This Row],[Harian]]*365 -> RM5,000.50
B15: Pendapatan | C15: Lain 1 | D15: RM82.19 | E15: =tblDaily[[#This Row],[Tahunan]]/12 -> RM2,499.95 | F15: =tblDaily[[#This Row],[Harian]]*365 -> RM29,999.35
B16: Pendapatan | C16: Lain 2 | D16: RM0.00 | E16: =tblDaily[[#This Row],[Tahunan]]/12 -> RM0.00 | F16: =tblDaily[[#This Row],[Harian]]*365 -> RM0.00
B17: Pendapatan | C17: Lain 3 | D17: RM0.00 | E17: =tblDaily[[#This Row],[Tahunan]]/12 -> RM0.00 | F17: =tblDaily[[#This Row],[Harian]]*365 -> RM0.00
B18: Pendapatan | C18: Lain 4 | D18: RM0.00 | E18: =tblDaily[[#This Row],[Tahunan]]/12 -> RM0.00 | F18: =tblDaily[[#This Row],[Harian]]*365 -> RM0.00
B19: Perbelanjaan | C19: Persekutuan/SS/Jagaan Perubatan | D19: RM41.10 | E19: =tblDaily[[#This Row],[Tahunan]]/12 -> RM1,250.13 | F19: =tblDaily[[#This Row],[Harian]]*365 -> RM15,001.50
B20: Perbelanjaan | C20: Cukai Pendapatan Negeri | D20: RM6.85 | E20: =tblDaily[[#This Row],[Tahunan]]/12 -> RM208.35 | F20: =tblDaily[[#This Row],[Harian]]*365 -> RM2,500.25
B21: Perbelanjaan | C21: Cukai/Yuran Kenderaan | D21: RM0.55 | E21: =tblDaily[[#This Row],[Tahunan]]/12 -> RM16.73 | F21: =tblDaily[[#This Row],[Harian]]*365 -> RM200.75
B22: Perbelanjaan | C22: Bayaran Kenderaan | D22: RM10.96 | E22: =tblDaily[[#This Row],[Tahunan]]/12 -> RM333.37 | F22: =tblDaily[[#This Row],[Harian]]*365 -> RM4,000.40
B23: Perbelanjaan | C23: Gadai Janji/Sewa | D23: RM41.10 | E23: =tblDaily[[#This Row],[Tahunan]]/12 -> RM1,250.13 | F23: =tblDaily[[#This Row],[Harian]]*365 -> RM15,001.50
B24: Perbelanjaan | C24: Insurans | D24: RM0.68 | E24: =tblDaily[[#This Row],[Tahunan]]/12 -> RM20.68 | F24: =tblDaily[[#This Row],[Harian]]*365 -> RM248.20
B25: Perbelanjaan | C25: Elektrik | D25: RM3.29 | E25: =tblDaily[[#This Row],[Tahunan]]/12 -> RM100.07 | F25: =tblDaily[[#This Row],[Harian]]*365 -> RM1,200.85
B26: Perbelanjaan | C26: Gas | D26: RM1.64 | E26: =tblDaily[[#This Row],[Tahunan]]/12 -> RM49.88 | F26: =tblDaily[[#This Row],[Harian]]*365 -> RM598.60
B27: Perbelanjaan | C27: Air | D27: RM1.64 | E27: =tblDaily[[#This Row],[Tahunan]]/12 -> RM49.88 | F27: =tblDaily[[#This Row],[Harian]]*365 -> RM598.60
B28: Perbelanjaan | C28: Pembetung | D28: RM0.82 | E28: =tblDaily[[#This Row],[Tahunan]]/12 -> RM24.94 | F28: =tblDaily[[#This Row],[Harian]]*365 -> RM299.30
B29: Perbelanjaan | C29: Sampah | D29: RM0.41 | E29: =tblDaily[[#This Row],[Tahunan]]/12 -> RM12.47 | F29: =tblDaily[[#This Row],[Harian]]*365 -> RM149.65
B30: Perbelanjaan | C30: Telefon | D30: RM1.64 | E30: =tblDaily[[#This Row],[Tahunan]]/12 -> RM49.88 | F30: =tblDaily[[#This Row],[Harian]]*365 -> RM598.60
B31: Perbelanjaan | C31: Internet | D31: RM1.64 | E31: =tblDaily[[#This Row],[Tahunan]]/12 -> RM49.88 | F31: =tblDaily[[#This Row],[Harian]]*365 -> RM598.60
B32: Perbelanjaan | C32: Premium nyawa/Kecacatan | D32: RM4.11 | E32: =tblDaily[[#This Row],[Tahunan]]/12 -> RM125.01 | F32: =tblDaily[[#This Row],[Harian]]*365 -> RM1,500.15
B33: Perbelanjaan | C33: Makanan | D33: RM13.70 | E33: =tblDaily[[#This Row],[Tahunan]]/12 -> RM416.71 | F33: =tblDaily[[#This Row],[Harian]]*365 -> RM5,000.50
B34: Perbelanjaan | C34: Pakaian | D34: RM3.29 | E34: =tblDaily[[#This Row],[Tahunan]]/12 -> RM100.07 | F34: =tblDaily[[#This Row],[Harian]]*365 -> RM1,200.85
B35: Perbelanjaan | C35: Perubatan/Pergigian/Rx | D35: RM1.64 | E35: =tblDaily[[#This Row],[Tahunan]]/12 -> RM49.88 | F35: =tblDaily[[#This Row],[Harian]]*365 -> RM598.60
B36: Perbelanjaan | C36: Bas | D36: RM1.00 | E36: =tblDaily[[#This Row],[Tahunan]]/12 -> RM30.42 | F36: =tblDaily[[#This Row],[Harian]]*365 -> RM365.00
B37: Perbelanjaan | C37: Lain 2 | D37: RM0.00 | E37: =tblDaily[[#This Row],[Tahunan]]/12 -> RM0.00 | F37: =tblDaily[[#This Row],[Harian]]*365 -> RM0.00
B38: Perbelanjaan | C38: Lain 3 | D38: RM0.00 | E38: =tblDaily[[#This Row],[Tahunan]]/12 -> RM0.00 | F38: =tblDaily[[#This Row],[Harian]]*365 -> RM0.00
B39: Perbelanjaan | C39: Lain 4 | D39: RM0.00 | E39: =tblDaily[[#This Row],[Tahunan]]/12 -> RM0.00 | F39: =tblDaily[[#This Row],[Harian]]*365 -> RM0.00
B40: Budi Bicara | C40: Makan Malam | D40: RM3.29 | E40: =tblDaily[[#This Row],[Tahunan]]/12 -> RM100.07 | F40: =tblDaily[[#This Row],[Harian]]*365 -> RM1,200.85
B41: Budi Bicara | C41: Hadiah | D41: RM1.64 | E41: =tblDaily[[#This Row],[Tahunan]]/12 -> RM49.88 | F41: =tblDaily[[#This Row],[Harian]]*365 -> RM598.60
B42: Budi Bicara | C42: Pelancongan | D42: RM6.16 | E42: =tblDaily[[#This Row],[Tahunan]]/12 -> RM187.37 | F42: =tblDaily[[#This Row],[Harian]]*365 -> RM2,248.40
B43: Budi Bicara | C43: Hiburan | D43: RM3.29 | E43: =tblDaily[[#This Row],[Tahunan]]/12 -> RM100.07 | F43: =tblDaily[[#This Row],[Harian]]*365 -> RM1,200.85
B44: Budi Bicara | C44: Penjagaan Peribadi | D44: RM0.82 | E44: =tblDaily[[#This Row],[Tahunan]]/12 -> RM24.94 | F44: =tblDaily[[#This Row],[Harian]]*365 -> RM299.30
B45: Budi Bicara | C45: Membeli-belah | D45: RM5.48 | E45: =tblDaily[[#This Row],[Tahunan]]/12 -> RM166.68 | F45: =tblDaily[[#This Row],[Harian]]*365 -> RM2,000.20
B46: Budi Bicara | C46: Amal | D46: RM1.64 | E46: =tblDaily[[#This Row],[Tahunan]]/12 -> RM49.88 | F46: =tblDaily[[#This Row],[Harian]]*365 -> RM598.60
B47: Budi Bicara | C47: Kelab/Keahlian | D47: RM0.82 | E47: =tblDaily[[#This Row],[Tahunan]]/12 -> RM24.94 | F47: =tblDaily[[#This Row],[Harian]]*365 -> RM299.30
B48: Budi Bicara | C48: Pembaikan Rumah | D48: RM13.15 | E48: =tblDaily[[#This Row],[Tahunan]]/12 -> RM399.98 | F48: =tblDaily[[#This Row],[Harian]]*365 -> RM4,799.75
B49: Budi Bicara | C49: Lain 1 | D49: RM0.00 | E49: =tblDaily[[#This Row],[Tahunan]]/12 -> RM0.00 | F49: =tblDaily[[#This Row],[Harian]]*365 -> RM0.00
B50: Budi Bicara | C50: Lain 2 | D50: RM0.00 | E50: =tblDaily[[#This Row],[Tahunan]]/12 -> RM0.00 | F50: =tblDaily[[#This Row],[Harian]]*365 -> RM0.00
B51: Simpanan | C51: Simpanan Tunai | D51: RM13.70 | E51: =tblDaily[[#This Row],[Tahunan]]/12 -> RM416.71 | F51: =tblDaily[[#This Row],[Harian]]*365 -> RM5,000.50
B52: Simpanan | C52: 401(k)/Dll | D52: RM32.88 | E52: =tblDaily[[#This Row],[Tahunan]]/12 -> RM1,000.10 | F52: =tblDaily[[#This Row],[Harian]]*365 -> RM12,001.20
B53: Simpanan | C53: Simpanan/Pelaburan/Akaun | D53: RM16.44 | E53: =tblDaily[[#This Row],[Tahunan]]/12 -> RM500.05 | F53: =tblDaily[[#This Row],[Harian]]*365 -> RM6,000.60
B54: Simpanan | C54: Lain 1 | D54: RM0.00 | E54: =tblDaily[[#This Row],[Tahunan]]/12 -> RM0.00 | F54: =tblDaily[[#This Row],[Harian]]*365 -> RM0.00
B55: Simpanan | C55: Lain 2 | D55: RM0.00 | E55: =tblDaily[[#This Row],[Tahunan]]/12 -> RM0.00 | F55: =tblDaily[[#This Row],[Harian]]*365 -> RM0.00
B56: Jumlah | D56: =SUMIF(tblDaily[Jenis],"Pendapatan",tblDaily[Harian])-SUMIF(tblDaily[Jenis],"<>Pendapatan",tblDaily[Harian]) -> RM107.10 | E56: =SUMIF(tblDaily[Jenis],"Pendapatan",tblDaily[Bulanan])-SUMIF(tblDaily[Jenis],"<>Pendapatan",tblDaily[Bulanan]) -> RM3,257.63 | F56: =SUMIF(tblDaily[Jenis],"Pendapatan",tblDaily[Tahunan])-SUMIF(tblDaily[Jenis],"<>Pendapatan",tblDaily[Tahunan]) -> RM39,091.50
